bitfinex-derivatives/quotes_ETHF0:USTF0_20241013
["timestamp","ask_amount","ask_price","bid_price","bid_amount"]
[1728841603217,0.3863,2444.5,2444.4,0.40915]
[1728841604724,1.05635598,2444.7,2444.6,0.40912]
[1728841604920,1.05635598,2444.7,2444.3,0.865]
[1728841605122,0.45,2444.8,2444.3,0.865]
[1728841605123,1.50635598,2444.8,2444.6,0.40911]
[1728841605726,1.50635598,2444.8,2444.3,0.865]
[1728841605727,0.85909,2444.8,2444.7,0.4091]
[1728841606027,0.40911,2444.7,2444.6,0.40911]
[1728841606526,1.50635598,2444.8,2444.3,0.865]
[1728841606828,0.85909,2444.8,2444.7,0.4091]
[1728841607126,0.85909,2444.8,2444.6,0.40911]
[1728841608120,0.45,2444.8,2444.7,0.4091]
[1728841608329,1.05635598,2445.1,2445.0,0.40905]
[1728841608535,0.4217,2445.2,2444.8,2.87]
[1728841608722,0.40904,2445.1,2445.0,0.40904]
[1728841609028,0.83073,2445.2,2445.0,0.40904]
[1728841609334,0.4217,2445.2,2444.6,3.89277]
[1728841609520,0.40904,2445.1,2444.9,0.40906]
[1728841609724,0.40904,2445.1,2444.6,3.89277]
[1728841609725,0.83073,2445.2,2445.0,0.40905]
[1728841609920,0.40904,2445.1,2444.6,2.87]
[1728841610431,0.4217,2445.2,2444.5,4.26896056]
[1728841610630,0.40908,2444.9,2444.6,1.68611]
[1728841610928,0.40908,2444.9,2444.6,1.277]
[1728841611119,0.40908,2444.9,2444.6,1.68611]
[1728841611925,0.40907,2444.9,2444.6,1.68611]
[1728841612135,0.4167,2444.8,2444.6,1.68611]
[1728841612330,0.4461,2444.7,2444.6,1.68611]
[1728841612531,0.4461,2444.7,2444.6,0.40911]
[1728841617324,0.4167,2444.8,2444.7,0.4091]
[1728841617730,0.4199,2444.9,2444.6,2.87]
[1728841617927,0.8908,2445.2,2445.1,0.40904]
[1728841618324,0.4199,2445.3,2445.2,0.40902]
[1728841618527,0.8289,2445.3,2445.1,0.40903]
[1728841618828,0.8289,2445.3,2444.9,0.8662]
[1728841618829,0.4199,2445.3,2444.9,0.8662]
[1728841619029,0.4199,2445.3,2445.2,0.40902]
[1728841620236,0.4199,2445.3,2444.8,6.0778]
[1728841620442,1.05635598,2445.7,2445.1,2.87]
[1728841620731,1.05635598,2445.7,2445.3,3.27899]
[1728841620732,0.40896,2445.6,2445.3,3.27899]
[1728841620932,0.40896,2445.6,2445.3,2.87]
[1728841621125,9.66176193,2446.1,2445.8,0.40891]
[1728841621126,0.61388,2446.1,2445.8,0.40891]
[1728841621430,0.83908,2446.1,2445.9,2.87]
[1728841621629,0.4302,2446.1,2445.9,3.2789]
[1728841622034,0.4145,2446.0,2445.9,3.2789]
[1728841623025,0.4302,2446.1,2446.0,0.40889]
[1728841625930,0.4302,2446.1,2445.9,2.87]
[1728841626132,3.638,2446.1,2445.7,2.87]
[1728841626440,0.4089,2445.9,2445.7,2.87]
[1728841626739,0.4379,2446.0,2445.6,3.2078]
[1728841626740,0.40892,2445.8,2445.6,3.2078]
[1728841626951,3.2078,2445.8,2445.3,1.277]
[1728841627232,0.40896,2445.6,2445.3,1.277]
[1728841627439,0.4506,2445.5,2445.3,1.277]
[1728841628530,0.4506,2445.5,2445.3,1.686]
[1728841628940,0.85957,2445.5,2445.3,1.277]
[1728841629243,0.4506,2445.5,2445.3,1.277]
[1728841629433,0.85958,2445.5,2445.3,1.277]
[1728841629633,0.85958,2445.5,2445.2,3.27902]
[1728841630542,0.85958,2445.5,2445.2,2.87]
[1728841630543,0.4506,2445.5,2445.2,2.87]
[1728841630745,0.409,2445.3,2445.2,2.87]
[1728841630946,0.4506,2445.5,2445.2,2.87]
[1728841631242,0.40899,2445.4,2445.2,2.87]
[1728841631745,1.35048,2445.5,2445.2,3.27902]
[1728841632535,1.35048,2445.5,2445.2,2.87]
[1728841632750,1.35048,2445.5,2445.2,3.27901]
[1728841633137,0.40899,2445.4,2445.2,2.87]
[1728841633340,1.35048,2445.5,2445.2,3.27901]
[1728841633835,0.85958,2445.5,2445.2,3.27901]
[1728841634037,0.4506,2445.5,2445.3,0.409]
[1728841634246,0.4506,2445.5,2445.4,0.40899]
[1728841634445,0.4506,2445.5,2445.2,2.87]
[1728841634446,0.4506,2445.5,2445.3,0.40899]
[1728841635048,0.4506,2445.5,2445.2,2.87]
[1728841635345,0.4506,2445.5,2445.3,0.40899]
[1728841635536,0.4506,2445.5,2445.2,4.181]
[1728841635732,0.4506,2445.5,2445.4,0.40899]
[1728841636939,0.4506,2445.5,2445.2,4.181]
[1728841637148,0.4506,2445.5,2445.3,0.409]
[1728841637346,0.4506,2445.5,2445.2,4.181]
[1728841637540,0.4506,2445.5,2445.4,0.40899]
[1728841638942,0.4506,2445.5,2445.4,3.27899]
[1728841639338,0.85785,2445.7,2445.4,3.27899]
[1728841639339,0.4489,2445.7,2445.6,0.40895]
[1728841639539,0.4765,2445.7,2445.6,0.40895]
[1728841640939,0.4765,2445.7,2445.6,3.27895]
[1728841642443,1.4765,2446.1,2445.6,2.87]
[1728841642444,3.6621,2446.1,2445.6,2.87]
[1728841642649,0.4903,2446.0,2445.9,3.27889]
[1728841647548,0.4903,2446.0,2445.9,2.87]
[1728841647748,0.4903,2446.0,2445.7,1.311]
[1728841648056,0.40892,2445.8,2445.7,1.311]
[1728841648754,0.4089,2445.9,2445.7,1.311]
[1728841648949,0.4903,2446.0,2445.7,1.311]
[1728841649152,0.89919,2446.0,2445.8,0.40891]
[1728841649356,0.89919,2446.0,2445.7,0.40893]
[1728841649960,0.4903,2446.0,2445.9,3.2789]
[1728841650156,3.2078,2446.4,2445.9,2.87]
[1728841650456,3.2078,2446.4,2446.2,0.40885]
[1728841650457,3.6565,2446.4,2446.2,0.40885]
[1728841651047,3.6565,2446.4,2446.1,2.87]
[1728841651253,3.2078,2446.4,2446.3,3.27884]
[1728841652158,3.2078,2446.4,2446.3,2.87]
[1728841652459,3.2078,2446.4,2446.3,3.27884]
[1728841652661,3.2078,2446.4,2446.3,2.87]
[1728841653465,3.61662,2446.4,2446.3,2.87]
[1728841653758,3.2078,2446.4,2446.2,1.311]
[1728841653948,3.61663,2446.4,2446.2,1.311]
[1728841654154,3.61663,2446.4,2446.2,1.71985]
[1728841656873,3.61663,2446.4,2446.2,4.58985]
[1728841659469,0.40884,2446.3,2446.2,4.181]
[1728841660570,3.2078,2446.4,2446.2,4.181]
[1728841660769,3.61663,2446.4,2446.2,4.58985]
[1728841661468,3.61663,2446.4,2446.2,3.27885]
[1728841662463,2.40039,2446.6,2446.2,2.87]
[1728841662464,1.3784,2446.6,2446.2,2.87]
[1728841662670,0.9291,2446.6,2446.5,3.2788]
[1728841662868,1.33789,2446.6,2446.5,2.87]
[1728841664470,0.9291,2446.6,2446.5,2.87]
[1728841664775,1.33789,2446.6,2446.5,2.87]
[1728841665673,0.9291,2446.6,2446.5,3.2788]
[1728841666471,0.4487,2446.6,2446.5,7.366]
[1728841666668,0.40876,2446.8,2446.5,6.9572]
[1728841666969,0.87406,2446.8,2446.7,0.40877]
[1728841667165,0.4653,2446.8,2446.7,3.27877]
[1728841667566,4.05854,2446.9,2446.7,2.87]
[1728841667772,4.05854,2446.9,2446.8,0.40875]
[1728841667974,4.05854,2446.9,2446.7,2.87]
[1728841667975,3.2078,2446.9,2446.7,2.87]
[1728841668178,3.2078,2446.9,2446.8,0.40875]
[1728841668476,3.61654,2446.9,2446.8,0.40875]
[1728841668679,3.2078,2446.9,2446.8,4.49595]
[1728841669078,0.87403,2447.0,2446.9,0.40874]
[1728841669285,0.87403,2447.0,2446.8,0.40874]
[1728841669473,0.87403,2447.0,2446.9,0.40874]
[1728841669680,0.87403,2447.0,2446.7,4.112]
[1728841669880,0.87403,2447.0,2446.9,2.87]
[1728841670173,0.4653,2447.0,2446.9,2.87]
[1728841670373,0.4653,2447.0,2446.9,7.36514]
[1728841670573,0.4653,2447.0,2446.9,6.9564]
[1728841670780,0.87402,2447.0,2446.9,2.87]
[1728841670972,0.87402,2447.0,2446.9,3.27874]
[1728841671386,0.87402,2447.0,2446.9,7.36514]
[1728841671786,0.87402,2447.0,2446.9,6.9564]
[1728841671984,0.4088,2446.5,2446.3,3.27883]
[1728841672283,0.40879,2446.6,2446.4,0.40881]
[1728841672487,0.40879,2446.6,2446.5,2.87]
[1728841672882,0.40874,2446.9,2446.6,0.40879]
[1728841673186,0.40874,2446.9,2446.8,2.87]
[1728841673781,0.4653,2447.0,2446.8,3.27874]
[1728841673782,0.87403,2447.0,2446.8,3.27874]
[1728841673982,0.40874,2446.9,2446.8,3.27874]
[1728841674189,0.87403,2447.0,2446.8,2.87]
[1728841674383,0.4653,2447.0,2446.9,0.40874]
[1728841675683,0.4653,2447.0,2446.9,4.49514]
[1728841677088,0.4317,2447.1,2446.9,4.49514]
[1728841677290,0.4317,2447.1,2447.0,2.87]
[1728841678291,0.4317,2447.1,2447.0,3.27872]
[1728841679085,0.442,2447.3,2447.0,6.9564]
[1728841679287,0.85067,2447.3,2447.2,2.87]
[1728841680389,0.442,2447.3,2447.2,3.27869]
[1728841680694,0.85067,2447.3,2447.2,2.87]
[1728841680892,0.85067,2447.3,2447.2,3.27869]
[1728841683094,0.442,2447.3,2447.2,3.27869]
[1728841683499,0.85067,2447.3,2447.2,3.27869]
[1728841684195,0.85067,2447.3,2447.2,2.87]
[1728841684497,0.4087,2447.1,2447.0,4.112]
[1728841684795,0.4087,2447.1,2447.0,4.52072]
[1728841685495,0.4087,2447.1,2447.0,4.112]
[1728841686691,0.4087,2447.2,2447.0,4.52071]
[1728841686893,0.442,2447.3,2447.0,4.112]
[1728841687202,0.442,2447.3,2447.2,3.27869]
[1728841687499,0.4689,2447.4,2447.2,2.87]
[1728841687696,0.4689,2447.4,2447.3,0.40867]
[1728841688298,5.81484084,2447.9,2447.3,0.40867]
[1728841688299,1.02133,2448.2,2447.7,0.4086]
[1728841688484,1.05706056,2448.3,2447.8,0.40859]
[1728841688485,0.8725,2447.9,2447.8,0.40859]
[1728841688690,0.8725,2447.9,2447.7,1.6506]
[1728841689297,0.8725,2447.9,2447.8,0.40859]
[1728841689487,0.8725,2447.9,2447.7,1.65059]
[1728841689688,0.8725,2447.9,2447.8,3.27859]
[1728841689889,0.40853,2448.2,2447.8,6.9556]
[1728841690193,0.4085,2448.3,2448.1,3.27853]
[1728841690496,1.28621,2448.3,2448.1,2.87]
[1728841690689,0.8777,2448.3,2448.1,3.27853]
[1728841691188,0.8777,2448.3,2448.2,0.40852]
[1728841691598,0.8777,2448.3,2448.2,4.49332]
[1728841692094,3.2078,2448.7,2448.2,4.0848]
[1728841692396,3.2078,2448.7,2448.4,2.87]
[1728841692397,0.8776,2448.6,2448.4,2.87]
[1728841692794,1.28607,2448.6,2448.4,2.87]
[1728841692994,0.8776,2448.6,2448.4,2.87]
[1728841693189,0.4591,2448.7,2448.6,0.40845]
[1728841693396,0.4591,2448.7,2448.6,3.27845]
[1728841693698,0.4591,2448.7,2448.6,2.87]
[1728841693900,4.5431,2448.7,2448.4,4.079]
[1728841694096,0.4591,2448.7,2448.4,4.079]
[1728841694404,0.4591,2448.7,2448.6,2.87]
[1728841694894,0.86754,2448.7,2448.6,2.87]
[1728841695395,0.4591,2448.7,2448.6,2.87]
[1728841695596,0.4246,2448.9,2448.7,0.40843]
[1728841695798,0.4246,2448.9,2448.6,2.87]
[1728841695799,0.4246,2448.9,2448.8,2.87]
[1728841696498,1.2808,2448.9,2448.8,2.87]
[1728841697591,1.6892,2448.9,2448.8,2.87]
[1728841697788,1.2808,2448.9,2448.8,2.87]
[1728841697992,1.6892,2448.9,2448.8,2.87]
[1728841698400,1.2808,2448.9,2448.8,2.87]
[1728841698602,1.6892,2448.9,2448.8,2.87]
[1728841698794,3.2078,2449.3,2448.8,2.87]
[1728841699101,1.68636,2449.2,2449.0,0.40839]
[1728841699302,1.68636,2449.2,2449.1,2.87]
[1728841699303,1.278,2449.2,2449.1,2.87]
[1728841699903,1.278,2449.2,2449.1,3.27837]
[1728841700093,1.278,2449.2,2449.0,1.208]
[1728841700094,1.278,2449.2,2448.9,2.87]
[1728841700294,0.40839,2449.1,2448.9,2.87]
[1728841700494,0.40839,2449.1,2448.9,3.2784]
[1728841700893,0.40839,2449.1,2448.9,2.87]
[1728841701396,0.40839,2449.1,2448.9,3.2784]
[1728841702290,0.40839,2449.0,2448.9,2.87]
[1728841702495,2.29889,2449.2,2448.7,2.87]
[1728841702496,0.40842,2448.8,2448.7,2.87]
[1728841702893,0.40842,2448.8,2448.7,3.27844]
[1728841703095,3.2078,2449.0,2448.7,3.27844]
[1728841703295,3.2078,2449.0,2448.9,2.87]
[1728841703296,3.61619,2449.0,2448.9,2.87]
[1728841703707,7.69939,2449.0,2448.9,2.87]
[1728841704593,7.291,2449.0,2448.9,3.2784]
[1728841705000,3.2078,2449.0,2448.9,3.2784]
[1728841705411,3.61619,2449.0,2448.9,2.87]
[1728841705703,3.61619,2449.0,2448.9,3.2784]
[1728841706210,3.2078,2449.0,2448.9,3.2784]
[1728841706701,3.61619,2449.0,2448.9,2.87]
[1728841707004,3.61619,2449.0,2448.7,3.27843]
[1728841707005,0.40842,2448.9,2448.7,3.27843]
[1728841707201,0.40842,2448.8,2448.7,3.27843]
[1728841707397,0.40842,2448.8,2448.7,2.87]
[1728841707593,4.49242,2448.8,2448.7,2.87]
[1728841707797,0.40842,2448.8,2448.7,2.87]
[1728841709203,3.2078,2449.0,2448.7,2.87]
[1728841709399,0.40842,2448.8,2448.7,2.87]
[1728841709800,3.2078,2449.0,2448.7,2.87]
[1728841710001,3.2078,2449.0,2448.7,3.27842]
[1728841710002,0.40841,2448.9,2448.7,3.27842]
[1728841710596,3.61619,2449.0,2448.7,2.87]
[1728841710798,3.61619,2449.0,2448.9,2.87]
[1728841711009,3.2078,2449.0,2448.9,2.87]
[1728841711204,3.2078,2449.0,2448.9,3.2784]
[1728841715911,0.8577,2449.2,2449.1,0.40837]
[1728841716111,0.4513,2449.5,2449.1,2.87]
[1728841716309,0.4513,2449.5,2449.3,3.27832]
[1728841716310,1.28071,2449.5,2449.3,3.27832]
[1728841716826,0.8724,2449.5,2449.3,3.27832]
[1728841717119,0.40832,2449.4,2449.3,3.27832]
[1728841717418,0.40832,2449.4,2449.3,2.87]
[1728841717613,0.40832,2449.4,2449.3,3.27834]
[1728841719813,0.40832,2449.4,2449.3,2.87]
[1728841720014,0.40832,2449.4,2448.7,3.7691]
[1728841720015,4.0824,2449.4,2448.7,4.9621]
[1728841720324,0.4211,2449.5,2448.7,4.5107]
[1728841720325,1.02093,2449.1,2448.7,4.5107]
[1728841720521,0.40841,2448.9,2448.7,2.04913]
[1728841720822,0.40841,2448.9,2448.8,2.87]
[1728841725120,0.887,2449.0,2448.8,3.27841]
[1728841725121,1.29539,2449.0,2448.8,3.27841]
[1728841725318,0.4084,2448.9,2448.8,2.87]
[1728841727016,1.2954,2449.0,2448.8,3.27841]
[1728841727521,0.4084,2448.9,2448.8,3.27841]
[1728841727716,0.4084,2448.9,2448.8,2.87]
[1728841729022,1.29539,2449.0,2448.8,3.27841]
[1728841729215,1.29539,2449.0,2448.8,2.87]
[1728841729528,4.22871,2449.2,2449.0,0.40838]
[1728841729529,0.40836,2449.2,2449.0,0.40838]
[1728841729732,0.40836,2449.2,2449.1,2.87]
[1728841730123,4.49156,2449.2,2449.1,2.87]
[1728841730726,4.49156,2449.2,2449.0,2.87]
[1728841730727,4.0832,2449.2,2449.0,2.87]
[1728841731025,0.4384,2449.3,2449.0,2.87]
[1728841731026,0.40837,2449.1,2449.0,2.87]
[1728841731325,0.40837,2449.1,2449.0,3.27839]
[1728841731914,0.40837,2449.1,2449.0,2.87]
[1728841732319,0.40837,2449.1,2449.0,3.27839]
[1728841732723,0.40837,2449.1,2449.0,2.87]
[1728841733122,0.40837,2449.1,2449.0,3.27839]
[1728841733322,0.40837,2449.1,2449.0,2.87]
[1728841734431,0.40837,2449.1,2449.0,3.27839]
[1728841735325,1.46543056,2449.1,2449.0,3.27839]
[1728841735526,0.40837,2449.1,2449.0,3.27839]
[1728841735927,1.46543056,2449.2,2449.1,0.40837]
[1728841736122,1.46543056,2449.2,2449.1,1.72837]
[1728841736330,1.99396084,2449.2,2449.1,1.72837]
[1728841738326,0.40837,2449.2,2449.1,1.32]
[1728841738526,6.60569112,2449.2,2449.1,1.32]
[1728841738736,0.40837,2449.2,2449.1,1.32]
[1728841739627,2.52249112,2449.2,2449.1,1.32]
[1728841741034,0.40837,2449.2,2449.1,1.72837]
[1728841741235,2.52249112,2449.2,2449.1,1.32]
[1728841741734,0.40837,2449.2,2449.1,1.32]
[1728841741931,3.61617,2449.2,2449.1,1.32]
[1728841744141,3.61617,2449.2,2449.1,1.72837]
[1728841744837,3.2078,2449.2,2449.1,1.72837]
[1728841745038,2.65764498,2449.2,2449.1,1.95834832]
[1728841745230,2.65764498,2449.3,2449.1,1.32]
[1728841745432,2.12601398,2449.2,2449.1,0.40837]
[1728841745633,2.12601398,2449.2,2449.1,4.49157]
[1728841745834,2.12601398,2449.2,2449.1,10.49157]
[1728841746036,2.65764498,2449.4,2449.3,0.40834]
[1728841746230,5.86544498,2449.5,2449.2,4.0832]
[1728841746433,5.86544498,2449.5,2449.4,1.72832]
[1728841746740,5.86544498,2449.5,2449.4,2.92132]
[1728841746937,5.86544498,2449.5,2449.4,7.00372]
[1728841747837,5.86544498,2449.5,2449.3,0.8566]
[1728841748038,0.40833,2449.4,2449.2,0.40835]
[1728841748351,0.40833,2449.4,2449.3,1.32]
[1728841749234,1.47152,2449.4,2449.1,0.78463]
[1728841749440,2.00193437,2449.2,2449.1,0.78463]
[1728841749642,0.40837,2449.2,2449.1,3.70065109]
[1728841749843,0.40837,2449.2,2449.1,2.91602109]
[1728841750241,0.4537,2449.3,2449.1,2.91602109]
[1728841750437,0.86205,2449.3,2449.2,2.39016241]
[1728841753143,0.40834,2449.3,2449.2,2.97443356]
[1728841753343,0.40834,2449.3,2449.2,3.42283356]
[1728841753645,0.40834,2449.3,2449.2,3.42282212]
[1728841753846,4.22858,2449.5,2449.2,3.42281869]
[1728841753847,0.40833,2449.4,2449.2,3.42281869]
[1728841754061,3.61612,2449.5,2449.3,1.72834]
[1728841754237,3.61612,2449.5,2449.4,1.32]
[1728841754746,3.2078,2449.5,2449.4,1.32]
[1728841754947,3.2078,2449.5,2449.4,1.72832]
[1728841756337,3.2078,2449.5,2449.2,1.07016241]
[1728841756644,1.2802,2449.4,2449.2,1.07016241]
[1728841756838,1.68853,2449.4,2449.3,1.32]
[1728841760249,0.4312,2449.4,2449.3,1.72834]
[1728841760546,3.2078,2449.5,2449.4,0.40832]
[1728841760754,3.2078,2449.5,2449.4,1.72832]
[1728841761649,3.6161,2449.5,2449.4,1.72832]
[1728841762751,3.2078,2449.5,2449.4,1.72832]
[1728841767254,3.6161,2449.5,2449.4,1.72832]
[1728841767556,0.40834,2449.3,2449.2,1.07016241]
[1728841767853,0.40834,2449.3,2449.2,2.56602063]
[1728841768051,0.40834,2449.3,2449.2,1.32]
[1728841769151,0.40834,2449.3,2449.1,1.07016241]
[1728841769152,0.40835,2449.2,2449.1,1.07016241]
[1728841769450,0.40837,2449.1,2449.0,1.32]
[1728841769665,0.40837,2449.1,2448.7,1.07016241]
[1728841769666,4.90605,2449.2,2449.1,1.32]
[1728841770051,8.98925,2449.2,2449.1,1.32]
[1728841770250,6.49754781,2449.2,2449.1,1.32]
[1728841770446,6.49754781,2449.2,2449.1,1.72837]
[1728841770447,2.44839781,2449.2,2449.1,1.72837]
[1728841770650,2.02449781,2449.4,2449.1,5.4032]
[1728841770855,0.84132,2449.4,2449.3,1.72834]
[1728841771057,0.84132,2449.4,2449.3,1.32]
[1728841771259,0.84132,2449.4,2449.3,1.72834]
[1728841771750,0.84132,2449.4,2449.3,0.40834]
[1728841771958,0.84132,2449.4,2449.3,2.87]
[1728841773153,0.40834,2449.3,2449.2,2.87]
[1728841775561,0.40834,2449.3,2449.2,3.27835]
[1728841776155,0.40834,2449.3,2449.2,3.45426344]
[1728841776457,0.40834,2449.3,2449.2,3.04591344]
[1728841776750,0.84132,2449.4,2449.3,0.40834]
[1728841777158,0.84132,2449.4,2449.2,3.94016241]
[1728841777359,0.40834,2449.3,2449.2,3.94016241]
[1728841777664,3.04532781,2449.4,2449.0,3.94016241]
[1728841777852,0.40835,2449.2,2449.1,0.17594326]
[1728841778258,0.40835,2449.2,2449.1,1.24610567]
[1728841779356,0.40835,2449.3,2449.1,1.65446567]
[1728841779557,0.40835,2449.3,2449.1,1.47852241]
[1728841779757,3.04532781,2449.4,2449.2,3.27834]
[1728841779758,2.43281781,2449.4,2449.2,3.27834]
[1728841779955,0.84132,2449.4,2449.2,3.27834]
[1728841780352,0.84132,2449.4,2449.2,4.34850241]
[1728841780555,0.433,2449.4,2449.2,3.94016241]
[1728841780761,0.40834,2449.3,2449.2,2.87]
[1728841781258,0.40834,2449.3,2449.2,0.17596115]
[1728841781464,0.40835,2449.2,2449.1,1.07016241]
[1728841781763,3.61614,2449.3,2449.1,3.60810822]
[1728841781957,0.433,2449.4,2449.2,3.04596116]
[1728841782157,0.433,2449.4,2449.2,2.87]
[1728841782158,0.40834,2449.3,2449.2,2.87]
[1728841782363,0.40834,2449.3,2449.2,3.04596905]
[1728841782766,0.40834,2449.3,2449.2,4.11613146]
[1728841783064,0.40834,2449.3,2449.2,4.52448146]
[1728841783766,0.40834,2449.3,2449.2,4.11613146]
[1728841784662,7.69934,2449.3,2449.2,1.07016241]
[1728841784861,13.291,2449.3,2448.8,1.07016241]
[1728841785066,0.40842,2448.8,2448.7,1.07071513]
[1728841785369,0.40842,2448.8,2448.7,3.07316633]
[1728841785566,1.69731,2448.9,2448.7,3.48146984]
[1728841785766,1.69731,2448.9,2448.8,1.24670972]
[1728841785970,1.69731,2448.9,2448.8,4.11670972]
[1728841786363,1.69731,2448.9,2448.8,2.87]
[1728841786858,1.69731,2448.9,2448.7,1.07071513]
[1728841786859,0.40842,2448.8,2448.7,1.07071513]
[1728841787063,0.40842,2448.8,2448.7,1.24668515]
[1728841788564,0.40842,2448.8,2448.7,1.07071513]
[1728841788768,0.40842,2448.8,2448.7,1.24665772]
[1728841791463,0.40842,2448.8,2448.7,1.07071513]
[1728841791677,0.40842,2448.8,2448.7,1.24661976]
[1728841792377,0.40844,2448.7,2448.6,3.94071513]
[1728841792680,0.40844,2448.7,2448.6,5.94210823]
[1728841792872,0.40844,2448.7,2448.6,6.06980094]
[1728841793376,0.40844,2448.7,2448.6,5.94210823]
[1728841794075,0.40843,2448.8,2448.6,6.35041593]
[1728841794281,1.69732,2448.9,2448.7,3.27843]
[1728841794667,0.40842,2448.8,2448.7,2.87]
[1728841803780,1.59204336,2449.3,2449.1,0.40837]
[1728841803985,2.53105448,2449.4,2449.3,0.40834]
[1728841803986,1.59204336,2449.4,2449.3,0.40834]
[1728841804185,0.8404,2449.8,2449.3,3.72880534]
[1728841804385,1.24867,2449.8,2449.6,2.87]
[1728841804691,0.8404,2449.8,2449.6,2.87]
[1728841805188,0.40827,2449.7,2449.6,2.87]
[1728841806486,0.8404,2449.8,2449.5,2.87]
[1728841806681,0.40828,2449.7,2449.5,2.87]
[1728841806877,0.40829,2449.6,2449.5,2.87]
[1728841807792,0.40829,2449.6,2449.2,1.06872952]
[1728841807793,0.40834,2449.3,2449.2,1.06872952]
[1728841807981,1.02076,2449.5,2449.1,2.19372952]
[1728841808182,3.2078,2449.6,2449.1,1.125]
[1728841808183,0.8692,2449.2,2449.1,1.125]
[1728841808586,1.27755,2449.2,2449.1,1.125]
[1728841810489,0.40837,2449.1,2449.0,2.87]
[1728841813597,0.4084,2449.0,2448.8,3.93872952]
[1728841813990,1.89012,2449.2,2448.8,3.93872952]
[1728841814494,0.4084,2449.0,2448.8,3.93872952]
[1728841816199,0.4084,2449.0,2448.8,4.34714952]
[1728841816686,0.40838,2449.1,2448.8,4.34714952]
[1728841816998,0.8692,2449.2,2449.0,2.87]
[1728841817186,3.2078,2449.3,2449.2,0.40835]
[1728841817386,3.2078,2449.3,2449.2,2.87]
[1728841817387,3.61614,2449.3,2449.2,2.87]
[1728841818195,3.2078,2449.3,2449.2,2.87]
[1728841818395,3.61614,2449.3,2449.2,2.87]
[1728841818595,7.291,2449.3,2449.0,1.06872952]
[1728841818791,0.40838,2449.1,2448.9,3.93872952]
[1728841818994,0.4206,2449.0,2448.9,3.93872952]
[1728841819399,0.4206,2449.0,2448.9,2.87]
[1728841819400,0.82899,2449.0,2448.9,2.87]
[1728841820398,0.40842,2448.8,2448.7,2.87]
[1728841820585,0.40841,2448.9,2448.7,2.87]
[1728841820791,0.4187,2448.8,2448.5,3.93872952]
[1728841820992,0.8417,2448.8,2448.5,2.87]
[1728841821193,0.40845,2448.6,2448.5,2.87]
[1728841821794,0.40845,2448.6,2448.4,1.06872952]
[1728841821795,4.084,2448.6,2448.4,1.06872952]
[1728841821997,0.83198,2448.5,2448.3,2.87]
[1728841822801,0.4235,2448.5,2448.3,2.87]
[1728841823003,0.40849,2448.4,2448.3,2.87]
[1728841828208,0.85329,2448.4,2448.3,2.87]
[1728841828405,0.85329,2448.4,2448.1,6.0778]
[1728841828406,0.4448,2448.4,2448.1,6.0778]
[1728841828609,0.4085,2448.3,2448.1,6.48634]
[1728841829108,0.4085,2448.3,2448.1,6.0778]
[1728841829503,0.4085,2448.3,2448.1,6.48633]
[1728841829708,1.26919,2448.4,2448.1,6.48633]
[1728841830010,1.26919,2448.4,2448.3,2.87]
[1728841830204,0.40846,2448.6,2448.3,3.2785]
[1728841830415,0.40846,2448.6,2448.5,2.87]
[1728841831901,0.40846,2448.6,2448.4,0.40848]
[1728841832406,3.2078,2448.7,2448.4,0.40848]
[1728841832603,0.40847,2448.6,2448.4,0.40848]
[1728841833402,3.2078,2448.7,2448.4,0.40848]
[1728841833605,0.40849,2448.4,2448.3,0.82079]
[1728841834117,0.40848,2448.5,2448.4,0.40848]
[1728841834306,0.40849,2448.4,2448.3,0.82079]
[1728841834506,0.40849,2448.4,2448.3,0.40849]
[1728841834902,0.40848,2448.5,2448.2,2.87]
[1728841835114,0.40848,2448.5,2448.3,0.4085]
[1728841835312,4.22891,2448.7,2448.2,2.87]
[1728841835514,1.02117,2448.6,2448.2,0.4085]
[1728841835816,0.4085,2448.3,2448.2,0.4085]
[1728841836517,0.4085,2448.4,2448.2,0.4085]
[1728841837517,0.4085,2448.4,2448.1,4.03912]
[1728841838415,0.4085,2448.3,2448.1,4.03912]
[1728841838606,0.40852,2448.2,2448.1,3.2078]
[1728841838806,0.40852,2448.2,2447.8,3.7152]
[1728841838807,0.40857,2447.9,2447.8,3.7152]
[1728841839010,1.44113,2448.2,2448.0,0.40855]
[1728841839011,0.82833,2448.2,2448.0,0.40855]
[1728841839214,0.82833,2448.2,2448.1,2.87]
[1728841842516,0.4198,2448.2,2448.0,0.40855]
[1728841842716,0.40854,2448.1,2448.0,0.40855]
[1728841843622,0.82833,2448.2,2448.1,0.40854]
[1728841844207,0.82833,2448.2,2447.9,2.87]
[1728841844208,0.4198,2448.2,2447.9,2.87]
[1728841844413,0.4198,2448.2,2447.8,0.4137]
[1728841844618,0.40857,2447.9,2447.8,0.82228]
[1728841845411,0.40857,2447.9,2447.8,0.4137]
[1728841846624,13.2934,2447.9,2447.1,0.28056327]
[1728841846815,0.40875,2446.9,2446.6,3.2078]
[1728841847012,0.40876,2446.8,2446.6,3.2078]
[1728841847318,0.40877,2446.8,2446.6,3.2078]
[1728841847623,0.40877,2446.8,2446.4,0.4228]
[1728841847918,7.5311,2447.1,2446.5,0.4088]